bitfinex/quotes_BTCUSD_20251208
["timestamp","ask_amount","ask_price","bid_price","bid_amount"]
[1765193315735,0.001,92115.0,92114.0,0.22725116]
[1765193317935,0.001,92115.0,92114.0,0.26810116]
[1765193323329,0.001,92115.0,92114.0,0.29739424]
[1765193325317,0.001,92115.0,92114.0,0.26810116]
[1765193326306,0.001,92115.0,92114.0,0.29736357]
[1765193326469,0.001,92115.0,92114.0,0.22725116]
[1765193330625,0.001,92115.0,92114.0,0.24233116]
[1765193330800,0.001,92115.0,92114.0,0.28729316]
[1765193331412,0.001,92115.0,92114.0,0.26510116]
[1765193334773,0.001,92115.0,92114.0,0.22725116]
[1765193335446,0.00763,92115.0,92114.0,0.22725116]
[1765193341453,0.0475,92115.0,92114.0,0.22725116]
[1765193342096,0.00763,92115.0,92114.0,0.22725116]
[1765193343653,0.2646199,92115.0,92114.0,0.0101289]
[1765193344747,0.0475,92115.0,92114.0,0.22725116]
[1765193345755,0.00763,92115.0,92114.0,0.22725116]
[1765193357315,0.04735,92115.0,92114.0,0.22725116]
[1765193359684,0.04735,92115.0,92114.0,0.0101289]
[1765193360448,0.2644699,92115.0,92114.0,0.0101289]
[1765193360715,0.04735,92115.0,92114.0,0.0101289]
[1765193361521,0.2644699,92115.0,92114.0,0.0101289]
[1765193361732,0.32699289,92115.0,92114.0,0.0101289]
[1765193361943,0.34918888,92115.0,92114.0,0.03944268]
[1765193362553,0.32860575,92115.0,92114.0,0.03944268]
[1765193362746,0.33875661,92115.0,92114.0,0.0101289]
[1765193367591,0.35080174,92115.0,92114.0,0.0101289]
[1765193368991,0.13368184,92115.0,92114.0,0.0101289]
[1765193369196,0.13368184,92115.0,92114.0,0.22725116]
[1765193369405,0.11148585,92115.0,92114.0,0.22725116]
[1765193369604,0.11148585,92115.0,92114.0,0.0101289]
[1765193369824,0.11148585,92115.0,92114.0,0.22725116]
[1765193371544,0.14619585,92115.0,92114.0,0.22725116]
[1765193372959,0.36331575,92115.0,92114.0,0.0101289]
[1765193373580,0.14619585,92115.0,92114.0,0.0101289]
[1765193373801,0.38551174,92115.0,92114.0,0.0101289]
[1765193374894,0.39565752,92115.0,92114.0,0.0101289]
[1765193375095,0.39565744,92115.0,92114.0,0.0101289]
[1765193375656,0.37346145,92115.0,92114.0,0.0101289]
[1765193376058,0.39565744,92115.0,92114.0,0.0101289]
[1765193376321,0.42497122,92115.0,92114.0,0.0101289]
[1765193376662,0.42496858,92115.0,92114.0,0.0101289]
[1765193376842,0.44208858,92115.0,92114.0,0.0101289]
[1765193377473,0.44108858,92115.0,92114.0,0.0031289]
[1765193377676,0.44208858,92115.0,92114.0,0.0081289]
[1765193377928,0.44208858,92115.0,92114.0,0.0061289]
[1765193378137,0.44208858,92115.0,92114.0,0.0071289]
[1765193378640,0.76408858,92115.0,92114.0,0.0021289]
[1765193379691,1.16408858,92115.0,92114.0,0.0011289]
[1765193381850,1.16608858,92115.0,92114.0,0.0011289]
[1765193382252,1.16607947,92115.0,92114.0,0.0011289]
[1765193385277,1.15594552,92115.0,92114.0,0.0011289]
[1765193385578,1.16607305,92115.0,92114.0,0.0011289]
[1765193385963,0.62484831,92111.0,92110.0,0.0002]
[1765193386164,0.65158553,92111.0,92110.0,0.0002]
[1765193386361,0.67413553,92111.0,92110.0,0.0002]
[1765193386585,0.70674417,92111.0,92110.0,0.0002]
[1765193386755,1.10674417,92111.0,92110.0,0.0002]
[1765193387595,1.11548417,92111.0,92110.0,0.0002]
[1765193389479,1.11648417,92111.0,92110.0,0.0002]
[1765193389802,1.11648417,92111.0,92110.0,0.0022]
[1765193390002,0.21717648,92091.0,92090.0,0.0002]
[1765193390172,0.30814947,92091.0,92090.0,0.0002]
[1765193390372,0.35289546,92091.0,92090.0,0.0002]
[1765193390571,0.38551126,92091.0,92090.0,0.0002]
[1765193391238,0.38551126,92091.0,92090.0,0.00158963]
[1765193391458,0.39562965,92091.0,92090.0,0.00158963]
[1765193391622,0.36431527,92091.0,92090.0,0.00858963]
[1765193391784,0.36431527,92091.0,92090.0,0.00158963]
[1765193391995,0.36331527,92091.0,92090.0,0.00228465]
[1765193392190,0.36431527,92091.0,92090.0,0.00728465]
[1765193392398,0.36431527,92091.0,92090.0,0.00628465]
[1765193399306,0.38651126,92091.0,92090.0,0.00628465]
[1765193400266,0.36431527,92091.0,92090.0,0.00628465]
[1765193400553,0.38651126,92091.0,92090.0,0.00628465]
[1765193400909,0.78651126,92091.0,92090.0,0.00628465]
[1765193401116,0.38651126,92091.0,92090.0,0.00628465]
[1765193401481,0.36431527,92091.0,92090.0,0.00628465]
[1765193401602,0.78651126,92091.0,92090.0,0.00628465]
[1765193402827,0.79662668,92091.0,92090.0,0.00628465]
[1765193403862,0.77443069,92091.0,92090.0,0.00628465]
[1765193404064,0.79662821,92091.0,92090.0,0.00628465]
[1765193406487,0.37443222,92091.0,92090.0,0.00628465]
[1765193406843,0.39662821,92091.0,92090.0,0.00628465]
[1765193406988,0.39663402,92091.0,92090.0,0.00628465]
[1765193408735,0.37443803,92091.0,92090.0,0.00628465]
[1765193408946,0.69743803,92091.0,92090.0,0.00628465]
[1765193409148,0.71963402,92091.0,92090.0,0.00628465]
[1765193409347,0.71963402,92091.0,92080.0,0.0002]
[1765193409348,0.62491905,92081.0,92080.0,0.0002]
[1765193409554,0.67480181,92081.0,92080.0,0.0002]
[1765193409731,1.09748181,92081.0,92080.0,0.0002]
[1765193410076,1.10183124,92081.0,92080.0,0.0002]
[1765193411188,1.08471124,92081.0,92080.0,0.0002]
[1765193411547,1.08771124,92081.0,92080.0,0.0012]
[1765193411748,1.10483124,92081.0,92080.0,0.0012]
[1765193411974,1.09470848,92081.0,92080.0,0.0012]
[1765193412173,1.09570848,92081.0,92080.0,0.0012]
[1765193412616,1.10582451,92081.0,92080.0,0.0012]
[1765193412790,1.06650852,92081.0,92080.0,0.0012]
[1765193412989,1.08870452,92081.0,92080.0,0.0012]
[1765193413785,1.10582452,92081.0,92080.0,0.0012]
[1765193414405,1.08870452,92081.0,92080.0,0.0012]
[1765193414613,1.10582452,92081.0,92080.0,0.0012]
[1765193414814,1.08870452,92081.0,92080.0,0.0012]
[1765193414983,1.08870452,92081.0,92080.0,0.00148966]
[1765193415468,1.10582452,92081.0,92080.0,0.00148966]
[1765193415618,1.10582272,92081.0,92080.0,0.00148966]
[1765193416440,1.08870272,92081.0,92080.0,0.00148966]
[1765193416818,1.10582272,92081.0,92080.0,0.00148966]
[1765193417610,1.08870272,92081.0,92080.0,0.00148966]
[1765193417810,1.08362673,92081.0,92080.0,0.00148966]
[1765193418011,1.08362673,92081.0,92070.0,0.0002]
[1765193418012,0.62494264,92071.0,92070.0,0.0002]
[1765193418273,0.72946711,92071.0,92070.0,0.0002]
[1765193418427,0.75296711,92071.0,92070.0,0.0002]
[1765193418621,0.76383159,92071.0,92070.0,0.0002]
[1765193418826,1.1416356,92071.0,92070.0,0.0002]
[1765193419141,1.16383159,92071.0,92070.0,0.0002]
[1765193419923,1.14671159,92071.0,92070.0,0.0002]
[1765193420125,1.16544445,92071.0,92070.0,0.0002]
[1765193420424,1.14832445,92071.0,92070.0,0.0002]
[1765193420643,1.14832445,92071.0,92070.0,0.0012]
[1765193420821,1.16944445,92071.0,92070.0,0.0012]
[1765193421047,1.16844445,92071.0,92070.0,0.0002]
[1765193421222,1.17544038,92071.0,92070.0,0.0012]
[1765193422353,1.15832038,92071.0,92070.0,0.0012]
[1765193422587,1.17544038,92071.0,92070.0,0.0012]
[1765193425409,1.15832038,92071.0,92070.0,0.0012]
[1765193425852,1.17544038,92071.0,92070.0,0.0012]
[1765193427033,1.15832038,92071.0,92070.0,0.0012]
[1765193427198,1.17544038,92071.0,92070.0,0.0012]
[1765193427400,1.15832038,92071.0,92070.0,0.0012]
[1765193427709,1.16533021,92071.0,92070.0,0.0012]
[1765193427907,1.17543299,92071.0,92070.0,0.0012]
[1765193428106,1.15831299,92071.0,92070.0,0.0012]
[1765193428648,1.17543299,92071.0,92070.0,0.0012]
[1765193428798,1.17543299,92071.0,92070.0,0.00148972]
[1765193429644,1.17543299,92071.0,92070.0,0.00160655]
[1765193429827,0.62496623,92061.0,92060.0,0.0002]
[1765193430027,0.67961788,92061.0,92060.0,0.00031658]
[1765193430235,0.70311788,92061.0,92060.0,0.00031658]
[1765193430431,1.09178743,92061.0,92060.0,0.00031658]
[1765193430633,1.09686342,92061.0,92060.0,0.00031658]
[1765193430836,1.11498342,92061.0,92060.0,0.00031658]
[1765193431005,1.11698342,92061.0,92060.0,0.00131658]
[1765193431207,1.09986342,92061.0,92060.0,0.00131658]
[1765193431459,1.11698342,92061.0,92060.0,0.00131658]
[1765193431656,1.09686342,92061.0,92060.0,0.00031658]
[1765193432050,1.12298342,92061.0,92060.0,0.00231658]
[1765193432564,1.10078743,92061.0,92060.0,0.00231658]
[1765193432768,1.12298342,92061.0,92060.0,0.00231658]
[1765193432936,1.10986342,92061.0,92060.0,0.00231658]
[1765193433541,1.12698342,92061.0,92060.0,0.00231658]
[1765193433979,1.10986342,92061.0,92060.0,0.00231658]
[1765193434569,1.08766743,92061.0,92060.0,0.00231658]
[1765193434778,1.10478743,92061.0,92060.0,0.00231658]
[1765193435154,1.12698342,92061.0,92060.0,0.00231658]
[1765193435356,1.12698342,92061.0,92060.0,0.00260634]
[1765193435357,1.10986342,92061.0,92060.0,0.00260634]
[1765193435823,1.11688177,92061.0,92060.0,0.00260634]
[1765193435959,1.10478537,92061.0,92060.0,0.00260634]
[1765193436143,1.12698136,92061.0,92060.0,0.00260634]
[1765193436649,1.10986136,92061.0,92060.0,0.00260634]
[1765193436844,1.12698136,92061.0,92060.0,0.00260634]
[1765193442402,1.12698136,92061.0,92040.0,0.0002]
[1765193442403,0.27981745,92041.0,92040.0,0.0002]
[1765193442549,0.41210326,92041.0,92040.0,0.0002]
[1765193442767,0.43565326,92041.0,92040.0,0.0002]
[1765193443290,0.82939999,92041.0,92040.0,0.0002]
[1765193443521,0.824324,92041.0,92040.0,0.0002]
[1765193443732,0.84951999,92041.0,92040.0,0.0012]
[1765193445409,0.83239999,92041.0,92040.0,0.0012]
[1765193445562,0.810204,92041.0,92040.0,0.0012]
[1765193445767,0.827324,92041.0,92040.0,0.0012]
[1765193446626,0.84951999,92041.0,92040.0,0.0012]
[1765193446833,0.83239999,92041.0,92040.0,0.0012]
[1765193447051,0.84951999,92041.0,92040.0,0.0012]
[1765193447950,0.83239999,92041.0,92040.0,0.0012]
[1765193448154,0.84951999,92041.0,92040.0,0.00177967]
[1765193448542,0.83239999,92041.0,92040.0,0.00177967]
[1765193448745,0.84951999,92041.0,92040.0,0.00177967]
[1765193450695,1.17251999,92041.0,92040.0,0.00177967]
[1765193450845,1.15539999,92041.0,92040.0,0.00177967]
[1765193451402,1.17251999,92041.0,92040.0,0.00177967]
[1765193451607,1.17151999,92041.0,92040.0,0.00177967]
[1765193452043,1.17551999,92041.0,92040.0,0.00177967]
[1765193452447,1.17551999,92041.0,92030.0,0.0002]
[1765193452448,0.21731807,92031.0,92030.0,0.0002]
[1765193452651,0.65412664,92031.0,92030.0,0.00026352]
[1765193452957,0.67767664,92031.0,92030.0,0.00026352]
[1765193453258,1.08202848,92031.0,92030.0,0.00026352]
[1765193453840,1.10414848,92031.0,92030.0,0.00226352]
[1765193454194,1.08702848,92031.0,92030.0,0.00226352]
[1765193454395,1.10414848,92031.0,92030.0,0.00226352]
[1765193454590,1.10514848,92031.0,92030.0,0.00226352]
[1765193455374,1.08802848,92031.0,92030.0,0.00226352]
[1765193455688,1.10514848,92031.0,92030.0,0.00226352]
[1765193456119,1.08964134,92031.0,92030.0,0.00226352]
[1765193456317,1.10676134,92031.0,92030.0,0.00226352]
[1765193456556,1.08964134,92031.0,92030.0,0.00226352]
[1765193457189,1.10676134,92031.0,92030.0,0.00226352]
[1765193457884,1.08964134,92031.0,92030.0,0.00226352]
[1765193458061,1.10676134,92031.0,92030.0,0.00255343]
[1765193458451,1.08964134,92031.0,92030.0,0.00255343]
[1765193458728,1.10680134,92031.0,92030.0,0.00255343]
[1765193459403,1.08964134,92031.0,92030.0,0.00255343]
[1765193459770,1.10680134,92031.0,92030.0,0.00255343]
[1765193460178,0.21736531,92011.0,92010.0,0.00029776]
[1765193460426,0.34090388,92011.0,92010.0,0.0004147]
[1765193460602,0.36445388,92011.0,92010.0,0.0004147]
[1765193460979,0.39709495,92011.0,92010.0,0.0004147]
[1765193461177,0.37489896,92011.0,92010.0,0.00199466]
[1765193461379,0.39709495,92011.0,92010.0,0.00199466]
[1765193461581,0.37489896,92011.0,92010.0,0.00199466]
[1765193462181,0.27991193,92001.0,92000.0,0.006714]
[1765193462397,0.30649152,92001.0,92000.0,0.00710388]
[1765193462610,0.76939751,92001.0,92000.0,0.00710388]
[1765193462845,0.83490966,92001.0,92000.0,0.00739392]
[1765193463693,0.82574966,92001.0,92000.0,0.00939392]
[1765193463889,1.14874966,92001.0,92000.0,0.00939392]
[1765193464294,1.16590144,92001.0,92000.0,0.00939392]
[1765193464687,1.15074144,92001.0,92000.0,0.00939392]
[1765193464870,1.16790144,92001.0,92000.0,0.00939392]
[1765193465292,1.16790144,92001.0,91990.0,0.0004]
[1765193465293,0.21741257,91991.0,91990.0,0.0004]
[1765193465506,0.21741257,91991.0,91980.0,0.0004]
[1765193465507,0.60295919,91981.0,91980.0,0.0004]
[1765193465741,0.66887898,91981.0,91980.0,0.0004]
[1765193465988,0.69141898,91981.0,91980.0,0.0004]
[1765193466195,1.09141898,91981.0,91980.0,0.0004]
[1765193466355,1.05206299,91981.0,91980.0,0.0004]
[1765193466552,1.06922299,91981.0,91980.0,0.0004]
[1765193466775,1.09141283,91981.0,91980.0,0.0004]
[1765193466943,1.09941283,91981.0,91980.0,0.0004]
[1765193467596,1.10341283,91981.0,91980.0,0.0004]
[1765193468321,1.10341283,91981.0,91970.0,0.0004]
[1765193468322,0.00099999,91980.0,91970.0,0.0004]
[1765193468526,0.64328883,91971.0,91970.0,0.0004]
[1765193468698,0.67590648,91971.0,91970.0,0.0004]
[1765193469017,0.67751934,91971.0,91970.0,0.0004]
[1765193470012,1.07751934,91971.0,91970.0,0.0004]
[1765193470213,1.07951934,91971.0,91970.0,0.0004]
[1765193470417,1.07949239,91971.0,91970.0,0.0004]
[1765193470617,1.0838474,91971.0,91970.0,0.0004]
[1765193471037,1.1010074,91971.0,91970.0,0.0004]
[1765193471399,1.1010074,91971.0,91970.0,0.00127046]
[1765193471804,1.1050074,91971.0,91970.0,0.00127046]
[1765193472842,1.1030074,91971.0,91970.0,0.00127046]
[1765193473281,1.0969567,91971.0,91970.0,0.00127046]
[1765193473567,1.10699935,91971.0,91970.0,0.00127046]
[1765193473967,1.10299935,91971.0,91970.0,0.00127046]
[1765193474168,1.06864336,91971.0,91970.0,0.00127046]
[1765193474346,1.08683935,91971.0,91970.0,0.00127046]
[1765193474548,1.10399935,91971.0,91970.0,0.00127046]
[1765193474721,1.09899935,91971.0,91970.0,0.00127046]
[1765193474922,1.10599935,91971.0,91970.0,0.00127046]
[1765193475542,1.09899935,91971.0,91970.0,0.00127046]
[1765193475849,1.10399935,91971.0,91970.0,0.00127046]
[1765193476181,1.10899935,91971.0,91970.0,0.00127046]
[1765193476379,1.10399935,91971.0,91970.0,0.00127046]
[1765193476561,1.10399312,91971.0,91970.0,0.00127046]
[1765193476761,1.10799312,91971.0,91970.0,0.00127046]
[1765193478188,0.62520247,91961.0,91950.0,0.0002]
[1765193478391,0.66903889,91961.0,91950.0,0.0002]
[1765193478591,0.69205889,91961.0,91950.0,0.0002]
[1765193478949,1.09641413,91961.0,91950.0,0.0002]
[1765193479367,1.09641413,91961.0,91960.0,0.00051678]
[1765193479368,1.09841413,91961.0,91960.0,0.00051678]
[1765193479564,0.62522613,91951.0,91950.0,0.0002]
[1765193479807,0.65822255,91951.0,91950.0,0.0002509]
[1765193480007,0.68124255,91951.0,91950.0,0.0002509]
[1765193480273,1.08124255,91951.0,91950.0,0.0002509]
[1765193480803,1.08424255,91951.0,91950.0,0.0002509]
[1765193480983,1.08424243,91951.0,91950.0,0.0002509]
[1765193481184,1.08724243,91951.0,91950.0,0.0002509]
[1765193481408,1.06504644,91951.0,91950.0,0.0002509]
[1765193481603,1.15864266,91951.0,91950.0,0.0002509]
[1765193484306,0.62524978,91941.0,91940.0,0.0004]
[1765193484504,0.66369608,91941.0,91940.0,0.0004509]
[1765193484748,0.66369608,91941.0,91940.0,0.00132179]
[1765193484749,0.68671608,91941.0,91940.0,0.00132179]
[1765193485062,0.69107214,91941.0,91932.0,4.004e-05]
[1765193485196,0.64950871,91933.0,91932.0,4.004e-05]
[1765193485405,0.65954501,91933.0,91932.0,4.004e-05]
[1765193485748,0.69972501,91933.0,91932.0,4.004e-05]
[1765193486242,0.73176925,91933.0,91932.0,4.004e-05]
[1765193486489,0.75396524,91933.0,91932.0,4.004e-05]
[1765193486694,0.64191345,91931.0,91930.0,4e-08]
[1765193486907,0.65194975,91931.0,91930.0,4e-08]
[1765193487325,0.69212975,91931.0,91930.0,4e-08]
[1765193488022,0.69812975,91931.0,91930.0,4e-08]
[1765193488259,0.67593376,91931.0,91930.0,4e-08]
[1765193488433,0.38552299,91914.0,91911.0,0.01088009]
[1765193488634,0.09093299,91912.0,91910.0,0.0108802]
[1765193488802,0.08919929,91911.0,91910.0,0.0108802]
[1765193489370,0.11221929,91911.0,91910.0,0.0108802]
[1765193489531,0.11221929,91911.0,91910.0,0.07128061]
[1765193489532,0.0100363,91911.0,91910.0,0.07128061]
[1765193489729,0.0100363,91927.0,91926.0,0.2175663]
[1765193490117,0.0100363,91927.0,91926.0,0.2335963]
[1765193490321,0.0100363,91927.0,91926.0,0.2562063]
[1765193491084,0.0130363,91927.0,91926.0,0.2562063]
[1765193491488,0.0130363,91927.0,91926.0,0.25661284]
[1765193492252,0.0130712,91927.0,91926.0,0.25661284]
[1765193492445,0.0130712,91927.0,91926.0,0.23400284]
[1765193492752,0.0130712,91927.0,91926.0,0.21797284]
[1765193492952,0.0130712,91927.0,91926.0,0.21897284]
[1765193494360,0.01308474,91927.0,91926.0,0.21897284]
[1765193496248,0.01308474,91927.0,91926.0,0.25761284]
[1765193496427,0.01308474,91927.0,91926.0,0.27980484]
[1765193496428,0.003,91927.0,91926.0,0.27980484]
[1765193497022,0.003,91927.0,91926.0,0.31887984]
[1765193497216,0.003,91927.0,91926.0,0.64187984]
[1765193497434,0.01009527,91954.0,91953.0,0.21750241]
[1765193497860,0.01009527,91954.0,91953.0,0.25614241]
[1765193498767,0.01009527,91954.0,91953.0,0.21750241]
[1765193498966,0.01009527,91954.0,91953.0,0.21950241]
[1765193499921,0.01209527,91954.0,91953.0,0.21950241]
[1765193500144,0.02873527,91954.0,91953.0,0.21950241]
[1765193500486,0.01009527,91954.0,91953.0,0.21750241]
[1765193500917,0.01209527,91954.0,91953.0,0.21950241]
[1765193501192,0.01009527,91954.0,91953.0,0.21750241]
[1765193501501,0.02873527,91954.0,91953.0,0.21950241]
[1765193501726,0.05175527,91954.0,91953.0,0.22150241]
[1765193502102,0.05175527,91954.0,91953.0,0.21950241]
[1765193502512,0.05175527,91954.0,91953.0,0.22050241]
[1765193502714,0.02873527,91954.0,91953.0,0.22050241]
[1765193502895,0.02872902,91954.0,91953.0,0.22050241]
[1765193503511,0.11590487,91954.0,91953.0,0.003]
[1765193504029,0.13810086,91954.0,91953.0,0.003]
[1765193504238,0.14897787,91954.0,91953.0,0.003]
[1765193504730,0.36647792,91954.0,91953.0,0.003]
[1765193505509,0.74428193,91954.0,91953.0,0.003]
[1765193505752,0.76647792,91954.0,91953.0,0.003]
[1765193506180,1.08947792,91954.0,91953.0,0.003]
[1765193506671,1.08947792,91954.0,91953.0,0.002]
[1765193506807,0.21754973,91933.0,91932.0,0.00023229]
[1765193507028,0.01008902,91933.0,91932.0,0.03990229]
[1765193507233,0.01008902,91939.0,91937.0,0.21753866]
[1765193507441,0.22840027,91944.0,91942.0,0.22840378]
[1765193507442,0.06252299,91944.0,91942.0,0.22840378]
[1765193507653,0.23848927,91943.0,91940.0,0.01087665]
[1765193507849,0.06432622,91942.0,91940.0,0.25016291]
[1765193508085,0.01008599,91941.0,91940.0,0.2523196]
[1765193508301,0.01087618,91944.0,91941.0,0.22840734]
[1765193508501,0.01087618,91944.0,91941.0,0.25231734]
[1765193508746,0.001,91944.0,91942.0,0.23928069]
[1765193508898,0.001,91944.0,91943.0,0.0217526]
[1765193509105,0.01008651,91946.0,91944.0,0.21752371]
[1765193509330,0.01008651,91950.0,91948.0,0.21751424]
[1765193509488,0.01087476,91956.0,91947.0,0.01087583]
[1765193509489,0.07339822,91952.0,91949.0,0.02175118]
[1765193509689,0.02096186,91951.0,91947.0,0.01087583]
[1765193509937,0.02096186,91951.0,91947.0,0.22839242]
[1765193510140,0.02096186,91951.0,91947.0,0.21751659]
[1765193510141,0.01087547,91950.0,91947.0,0.21751659]
[1765193510303,0.01087547,91950.0,91946.0,0.22839467]
[1765193510509,0.22838501,91950.0,91946.0,0.22839467]
[1765193510693,0.01087535,91951.0,91948.0,0.2175133]
[1765193510894,0.01487535,91951.0,91948.0,0.22838901]
[1765193511143,0.01087535,91951.0,91948.0,0.22838901]
[1765193511543,0.004,91950.0,91948.0,0.22838901]
[1765193511748,0.004,91950.0,91949.0,0.21751188]
[1765193511945,0.004,91950.0,91948.0,0.21751424]
[1765193512845,0.004,91950.0,91947.0,0.01087583]
[1765193512846,0.22838693,91950.0,91947.0,0.01087583]
[1765193513048,0.01087606,91945.0,91941.0,0.22840515]
[1765193513301,0.01087606,91945.0,91942.0,0.01087642]
[1765193513477,0.22839328,91947.0,91943.0,0.0108763]
[1765193513690,0.01087618,91944.0,91938.0,0.01154]
[1765193513890,0.01087701,91937.0,91934.0,0.21754724]
[1765193514089,0.22841835,91937.0,91934.0,0.2284246]
[1765193514292,0.22841542,91938.0,91934.0,0.01087736]
[1765193514500,0.21754263,91936.0,91934.0,0.01087736]
[1765193514666,0.01087701,91937.0,91934.0,0.22842339]
[1765193515707,0.21753364,91940.0,91936.0,0.01087713]
[1765193515905,0.01087677,91939.0,91935.0,0.22842183]
[1765193516131,0.01087701,91937.0,91934.0,0.22842467]
[1765193516289,0.01087701,91937.0,91935.0,0.21754433]
[1765193516490,0.2284195,91937.0,91934.0,0.22842467]
[1765193516715,0.2304195,91937.0,91934.0,0.22842349]
[1765193516890,0.01287701,91937.0,91934.0,0.22842349]
[1765193517096,0.23041749,91937.0,91934.0,0.22842349]
[1765193517295,0.01087713,91936.0,91934.0,0.21754607]
[1765193517500,0.22842044,91936.0,91933.0,0.2284271]
[1765193517704,0.22842044,91936.0,91934.0,0.002]
[1765193517901,0.01087713,91936.0,91934.0,0.21954625]
[1765193518187,0.22841988,91936.0,91933.0,0.2284271]
[1765193518398,0.002,91937.0,91936.0,0.21754263]
[1765193518800,0.002,91937.0,91935.0,0.21754493]
[1765193519037,0.002,91937.0,91936.0,0.21754263]
[1765193519399,0.01087677,91939.0,91936.0,0.21754263]
[1765193519750,0.22841092,91940.0,91937.0,0.21753968]
[1765193519952,0.22841092,91940.0,91937.0,0.22841669]
[1765193520164,0.01087677,91939.0,91936.0,0.22841546]
[1765193520365,0.002,91937.0,91934.0,0.01287736]
[1765193520567,0.002,91937.0,91936.0,0.21754263]
[1765193520726,0.002,91937.0,91936.0,0.23330263]
[1765193520950,0.002,91937.0,91936.0,0.25721263]
[1765193521185,0.23974338,91943.0,91939.0,0.01087677]
[1765193521389,0.0108763,91943.0,91940.0,0.01087665]
[1765193521553,0.0108763,91943.0,91939.0,0.22840803]
[1765193521554,0.002,91940.0,91939.0,0.22840803]
[1765193522543,0.002,91940.0,91939.0,0.01087677]
[1765193522806,0.22840807,91941.0,91938.0,0.21753765]
[1765193522970,0.01087665,91940.0,91937.0,0.01154]
[1765193523167,0.01087654,91941.0,91938.0,0.21753691]
[1765193523369,0.06252299,91946.0,91942.0,0.2175262]
[1765193523574,0.06252299,91946.0,91945.0,0.21752134]
[1765193523778,0.06252299,91946.0,91945.0,0.22906134]
[1765193524025,0.06252299,91946.0,91945.0,0.01154]
[1765193524206,0.06252299,91946.0,91943.0,0.0108763]
[1765193524207,0.29091983,91946.0,91943.0,0.0108763]
[1765193524412,0.01087606,91945.0,91942.0,0.21752398]
[1765193524705,0.01087606,91945.0,91943.0,0.21752538]
[1765193524861,0.06252299,91946.0,91945.0,0.21752134]
[1765193525063,0.00161286,91954.0,91945.0,0.0272]
[1765193525284,0.28002582,91953.0,91951.0,0.01087535]
[1765193525485,0.28002582,91953.0,91950.0,0.22838286]
[1765193525650,0.28002582,91953.0,91949.0,0.21751184]
[1765193525651,0.07339822,91952.0,91949.0,0.21751184]
[1765193525868,0.07339822,91952.0,91950.0,0.21750914]
[1765193526069,0.06252299,91953.0,91951.0,0.21750715]
[1765193526276,0.06252299,91953.0,91952.0,0.21750478]
[1765193526471,0.06752299,91953.0,91952.0,0.21750478]
[1765193526772,0.01087441,91959.0,91953.0,0.01087512]
[1765193526973,0.06252299,91958.0,91957.0,0.01087464]
[1765193527213,0.06252299,91958.0,91957.0,0.22836698]
[1765193527433,0.06263944,91959.0,91958.0,0.21749059]
[1765193527994,0.00011645,91959.0,91958.0,0.21749059]
[1765193528193,0.00011645,91959.0,91958.0,0.25722059]
[1765193529766,0.00411645,91959.0,91958.0,0.25922059]
[1765193531221,0.00411645,91959.0,91958.0,0.28141259]
[1765193531422,0.00411645,91959.0,91958.0,0.32039941]
[1765193532048,0.00411645,91959.0,91958.0,0.28141259]
[1765193532271,0.00011645,91959.0,91958.0,0.27941259]
[1765193532468,0.00011645,91959.0,91958.0,0.28141259]
[1765193532667,0.00211645,91959.0,91958.0,0.28441259]
[1765193532997,0.00211645,91959.0,91958.0,0.32145765]
[1765193533204,0.00211645,91959.0,91958.0,0.28241259]
[1765193533419,0.00211645,91959.0,91958.0,0.28641259]
[1765193533631,0.01785645,91959.0,91958.0,0.24668259]
[1765193533843,0.04289931,91959.0,91951.0,0.03904506]
[1765193533982,0.02751,91952.0,91949.0,0.01087559]
[1765193534185,0.02751,91952.0,91943.0,0.21752457]
[1765193534186,0.01087547,91950.0,91943.0,0.0108763]
[1765193534425,0.01087547,91950.0,91944.0,0.01087618]
[1765193534426,0.01087559,91949.0,91944.0,0.01087618]
[1765193534658,0.06252299,91949.0,91946.0,0.01087594]
[1765193534867,0.06252299,91949.0,91945.0,0.01087606]
[1765193535083,0.01087547,91950.0,91945.0,0.01087606]
[1765193535084,0.06252299,91950.0,91949.0,0.01087559]
[1765193535467,0.06252299,91953.0,91950.0,0.01087547]
[1765193535622,0.06252299,91957.0,91953.0,0.01087512]
[1765193535822,0.06252299,91957.0,91954.0,0.010875]
[1765193536027,0.00011645,91959.0,91956.0,0.02712476]
[1765193536224,0.00011645,91959.0,91958.0,0.01625]
[1765193536421,0.00011645,91959.0,91958.0,0.03799905]
[1765193536609,0.00011645,91959.0,91958.0,0.06283905]
[1765193537446,0.00511645,91959.0,91958.0,0.06383905]
[1765193538480,0.00011645,91959.0,91958.0,0.04109]
[1765193538852,0.00211645,91959.0,91958.0,0.04309]
[1765193539109,0.00011645,91959.0,91958.0,0.04109]
[1765193539437,0.00211645,91959.0,91958.0,0.04309]
[1765193540655,0.00211645,91959.0,91958.0,0.01825]
[1765193541087,0.00211645,91959.0,91958.0,0.002]
[1765193541427,0.02962645,91959.0,91958.0,0.002]
[1765193541793,0.05466931,91959.0,91958.0,0.002]
[1765193543515,0.4401923,91959.0,91958.0,0.002]
[1765193544074,0.46238829,91959.0,91958.0,0.002]
[1765193544459,0.46238829,91959.0,91958.0,0.001]
[1765193544661,0.4401923,91959.0,91958.0,0.001]
[1765193544873,0.21753426,91940.0,91936.0,0.02216713]
[1765193545077,0.01087618,91944.0,91937.0,0.22841569]
[1765193545278,0.21752705,91943.0,91939.0,0.21753426]
[1765193545588,0.0108763,91943.0,91933.0,0.01087748]
[1765193545790,0.02343,91947.0,91942.0,0.02754]
[1765193545791,0.01087606,91945.0,91942.0,0.02754]
[1765193545964,0.01087571,91948.0,91945.0,0.21752014]
[1765193546135,0.01087559,91949.0,91945.0,0.21752014]
[1765193546136,0.22838846,91949.0,91946.0,0.03800189]
[1765193546344,0.004,91943.0,91940.0,0.02216665]
[1765193546544,0.004,91943.0,91940.0,0.04700665]
[1765193546743,0.22839887,91945.0,91942.0,0.02712642]
[1765193547153,0.21752476,91944.0,91942.0,0.01625]
[1765193547333,0.22840094,91944.0,91940.0,0.02216665]
[1765193547774,0.0108763,91943.0,91940.0,0.04700665]
[1765193548077,0.21752973,91942.0,91940.0,0.03613]
[1765193548212,0.22840298,91943.0,91940.0,0.01129]
[1765193548414,0.21752972,91942.0,91940.0,0.01229]
[1765193548860,0.21752972,91942.0,91940.0,0.01129]
[1765193549176,0.22152972,91942.0,91941.0,0.01625]
[1765193549793,0.22152972,91942.0,91940.0,0.01229]
[1765193550013,0.004,91942.0,91940.0,0.01229]
[1765193550242,0.004,91942.0,91941.0,0.01625]
[1765193550651,0.004,91942.0,91941.0,0.06284308]
[1765193551025,0.01087464,91957.0,91954.0,0.010875]
[1765193551245,0.22836854,91957.0,91954.0,0.010875]
[1765193551404,0.22836854,91957.0,91954.0,0.022165]
[1765193551610,0.21749617,91956.0,91954.0,0.01129]